fUST/lending_fUST_20250927
["ID","MTS","AMOUNT","RATE_DAILY","PERIOD"]
[387854773,1758930675372,-480.0,0.00046301,30]
[387854774,1758930675382,-823.76,0.00046301,30]
[387854775,1758930675392,-480.0,0.00046301,30]
[387854776,1758930675402,-600.0,0.00046301,30]
[387854777,1758930675411,-151.0,0.00046301,120]
[387854778,1758930675421,-480.0,0.00046301,30]
[387854779,1758930675431,-198.960948,0.00046301,120]
[387854780,1758930675441,-4361.36,0.00046301,30]
[387854781,1758930675451,-153.155527,0.00046301,120]
[387854782,1758930675460,-480.0,0.00046301,30]
[387854783,1758930675470,-198.960948,0.00046301,120]
[387854784,1758930675479,-480.0,0.00046301,30]
[387854785,1758930675489,-480.0,0.00046301,30]
[387854786,1758930675499,-480.0,0.00046301,30]
[387854787,1758930675508,-480.0,0.00046301,30]
[387854788,1758930675518,-480.0,0.00046301,30]
[387854789,1758930675527,-198.960948,0.00046301,120]
[387854790,1758930675538,-2337.28,0.00046301,30]
[387854791,1758930675547,-198.960948,0.00046301,120]
[387854792,1758930675557,-618.58,0.00046301,30]
[387854793,1758930675567,-480.0,0.00046301,30]
[387854794,1758930675576,-1619.76,0.00046301,30]
[387854795,1758930675585,-1719.52,0.00046301,30]
[387854796,1758930675595,-480.0,0.00046301,30]
[387854797,1758930675605,-485.7801438,0.00046301,30]
[387854798,1758930675614,-282.219853,0.00046301,120]
[387854799,1758930675623,-480.0,0.00046301,30]
[387854800,1758930675643,-749.36,0.00046301,30]
[387854801,1758930675660,-282.219853,0.00046301,120]
[387854802,1758930675681,-151.0,0.00046301,120]
[387854803,1758930675700,-480.0,0.00046301,30]
[387854804,1758930675717,-480.0,0.00046301,30]
[387854805,1758930675733,-480.0,0.00046301,30]
[387854806,1758930675752,-282.219853,0.00046301,120]
[387854807,1758930675766,-480.0,0.00046301,30]
[387854808,1758930675782,-282.219853,0.00046301,120]
[387854809,1758930675800,-484.83462168,0.00046301,30]
[387854810,1758930675820,-480.0,0.00046301,30]
[387854811,1758930675832,-480.0,0.00046301,30]
[387854812,1758930675850,-831.55,0.00046301,30]
[387854813,1758930675864,-528.00722494,0.00046301,30]
[387854814,1758930675879,-1816.63,0.00046301,30]
[387854815,1758930675893,-480.0,0.00046301,30]
[387854816,1758930675907,-480.0,0.00046301,30]
[387854817,1758930675920,-628.69945431,0.00046301,30]
[387854818,1758930675935,-155.18832977,0.00046301,30]
[387854819,1758930675949,-172.772309,0.00046301,30]
[387854820,1758930675963,-480.0,0.00046301,30]
[387854821,1758930675977,-151.0,0.00046301,120]
[387854822,1758930675991,-480.0,0.00046301,30]
[387854823,1758930676005,-480.0,0.00046301,30]
[387854824,1758930676020,-151.0,0.00046301,120]
[387854825,1758930676034,-1056.72,0.00046301,30]
[387854826,1758930676049,-480.0,0.00046301,30]
[387854827,1758930676064,-151.0,0.00046301,120]
[387854828,1758930676079,-480.0,0.00046301,30]
[387854829,1758930676093,-151.0,0.00046301,120]
[387854830,1758930676107,-151.0,0.00046301,120]
[387854831,1758930676121,-151.0,0.00046301,120]
[387854832,1758930676137,-480.0,0.00046301,30]
[387854833,1758930676151,-1861.19,0.00046301,30]
[387854834,1758930676165,-480.0,0.00046301,30]
[387854835,1758930676180,-480.0,0.00046301,30]
[387854836,1758930676194,-310.487216,0.00046301,120]
[387854837,1758930676208,-480.0,0.00046301,30]
[387854838,1758930676223,-480.0,0.00046301,30]
[387854839,1758930676237,-480.0,0.00046301,30]
[387854840,1758930676251,-310.487216,0.00046301,120]
[387854841,1758930676266,-642.64,0.00046301,30]
[387854842,1758930676280,-480.0,0.00046301,30]
[387854843,1758930676296,-752.340432,0.00046301,15]
[387854844,1758930676309,-3009.0,0.00046301,30]
[387854845,1758930676324,-310.487216,0.00046301,120]
[387854846,1758930676338,-480.0,0.00046301,30]
[387854847,1758930676353,-310.487216,0.00046301,120]
[387854848,1758930676368,-752.340432,0.00046301,15]
[387854849,1758930676382,-480.0,0.00046301,30]
[387854850,1758930676397,-480.0,0.00046301,30]
[387854851,1758930676415,-480.0,0.00046301,30]
[387854852,1758930676430,-480.0,0.00046301,30]
[387854853,1758930676444,-500.0,0.00046301,30]
[387854854,1758930676459,-480.0,0.00046301,30]
[387854855,1758930676473,-2268.32,0.00046301,30]
[387854856,1758930676488,-839.4,0.00046301,30]
[387854857,1758930676502,-151.14409,0.00046301,120]
[387854858,1758930676516,-752.340432,0.00046301,15]
[387854859,1758930676531,-151.14409,0.00046301,120]
[387854860,1758930676548,-480.0,0.00046301,30]
[387854861,1758930676562,-752.340432,0.00046301,15]
[387854862,1758930676577,-480.0,0.00046301,30]
[387854863,1758930676591,-486.04,0.00046301,30]
[387854864,1758930676605,-751.19,0.00046301,30]
[387854865,1758930676620,-151.14409,0.00046301,120]
[387854866,1758930676633,-480.0,0.00046301,30]
[387854867,1758930676648,-205.73135948,0.00046301,30]
[387854868,1758930676664,-151.14409,0.00046301,120]
[387854869,1758930676679,-925.57,0.00046301,30]
[387854870,1758930676693,-480.0,0.00046301,30]
[387854871,1758930676708,-1783.09,0.00046301,30]
[387854872,1758930676721,-481.38222482,0.00046301,30]
[387854873,1758930676736,-5759.01,0.00046301,30]
[387854874,1758930676750,-480.0,0.00046301,30]
[387854875,1758930676765,-480.0,0.00046301,30]
[387854876,1758930676779,-480.0,0.00046301,30]
[387854877,1758930676794,-480.0,0.00046301,30]
[387854878,1758930676808,-1354.62,0.00046301,30]
[387854879,1758930676822,-480.0,0.00046301,30]
[387854880,1758930676836,-415.40201911,0.00046301,30]
[387854881,1758930676997,-480.0,0.00046301,30]
[387854882,1758930677008,-530.43,0.00046301,30]
[387854883,1758930677018,-480.0,0.00046301,30]
[387854884,1758930677027,-480.0,0.00046301,30]
[387854885,1758930677036,-480.0,0.00046301,30]
[387854886,1758930677046,-610.69,0.00046301,30]
[387854887,1758930677055,-341.99522,0.00046301,120]
[387854888,1758930677064,-520.46315698,0.00046301,30]
[387854889,1758930677074,-341.99522,0.00046301,120]
[387854890,1758930677083,-341.99522,0.00046301,120]
[387854891,1758930677093,-480.0,0.00046301,30]
[387854892,1758930677102,-341.99522,0.00046301,120]
[387854893,1758930677111,-480.0,0.00046301,30]
[387854894,1758930677121,-445.065496,0.00046301,120]
[387854895,1758930677130,-151.0,0.00046301,120]
[387854896,1758930677141,-445.065496,0.00046301,120]
[387854897,1758930677151,-480.0,0.00046301,30]
[387854898,1758930677160,-480.0,0.00046301,30]
[387854899,1758930677170,-480.0,0.00046301,30]
[387854900,1758930677180,-480.0,0.00046301,30]
[387854901,1758930677189,-1055.5,0.00046301,30]
[387854902,1758930677199,-151.0,0.00046301,120]
[387854903,1758930677208,-445.065496,0.00046301,120]
[387854904,1758930677218,-480.0,0.00046301,30]
[387854905,1758930677227,-168.373023,0.00046301,120]
[387854906,1758930677237,-445.065496,0.00046301,120]
[387854907,1758930677247,-5949.84,0.00046301,3]
[387854908,1758930677256,-13857.49,0.00046301,30]
[387854909,1758930677266,-480.0,0.00046301,30]
[387854910,1758930677275,-489.15388635,0.00046301,30]
[387854911,1758930677283,-480.0,0.00046301,30]
[387854912,1758930677292,-480.0,0.00046301,30]
[387854913,1758930677300,-688.13,0.00046301,30]
[387854914,1758930677310,-480.0,0.00046301,30]
[387854915,1758930677319,-520.46,0.00046301,30]
[387854916,1758930677328,-284.509304,0.00046301,120]
[387854917,1758930677337,-480.0,0.00046301,30]
[387854918,1758930677347,-582.06,0.00046301,30]
[387854919,1758930677356,-284.509304,0.00046301,120]
[387854920,1758930677366,-480.0,0.00046301,30]
[387854921,1758930677375,-2713.39,0.00046301,30]
[387854922,1758930677384,-284.509304,0.00046301,120]
[387854923,1758930677394,-480.0,0.00046301,30]
[387854924,1758930677404,-482.20881771,0.00046301,30]
[387854925,1758930677414,-284.509304,0.00046301,120]
[387854926,1758930677424,-1323.12,0.00046301,30]
[387854927,1758930677434,-4137.77,0.00046301,30]
[387854928,1758930677443,-480.0,0.00046301,30]
[387854929,1758930677453,-491.57,0.00046301,30]
[387854930,1758930677462,-1013.67,0.00046301,30]
[387854931,1758930677472,-480.0,0.00046301,30]
[387854932,1758930677481,-480.0,0.00046301,30]
[387854933,1758930677490,-480.0,0.00046301,30]
[387854934,1758930677500,-5978.0,0.00046301,30]
[387854935,1758930677509,-1604.73,0.00046301,30]
[387854936,1758930677518,-480.0,0.00046301,30]
[387854937,1758930677527,-480.0,0.00046301,30]
[387854938,1758930677536,-1322.87,0.00046301,30]
[387854939,1758930677546,-480.0,0.00046301,30]
[387854940,1758930677555,-151.0,0.00046301,120]
[387854941,1758930677564,-3232.118007,0.00046301,120]
[387854942,1758930677574,-480.0,0.00046301,30]
[387854943,1758930677583,-856.38,0.00046301,30]
[387854944,1758930677593,-921.896622,0.00046301,120]
[387854945,1758930677602,-480.0,0.00046301,30]
[387854946,1758930677612,-151.0,0.00046301,120]
[387854947,1758930677621,-905.9,0.00046301,30]
[387854948,1758930677630,-3232.118007,0.00046301,120]
[387854949,1758930677639,-480.0,0.00046301,30]
[387854950,1758930677648,-921.896622,0.00046301,120]
[387854951,1758930677657,-480.0,0.00046301,30]
[387854952,1758930677668,-3232.118007,0.00046301,120]
[387854953,1758930677677,-921.896622,0.00046301,120]
[387854954,1758930677686,-213.97454,0.00046301,120]
[387854955,1758930677695,-1798.95,0.00046301,30]
[387854956,1758930677704,-3232.118007,0.00046301,120]
[387854957,1758930677714,-480.0,0.00046301,30]
[387854958,1758930677723,-921.896622,0.00046301,120]
[387854959,1758930677733,-480.0,0.00046301,30]
[387854960,1758930677742,-213.97454,0.00046301,120]
[387854961,1758930677751,-480.0,0.00046301,30]
[387854962,1758930677761,-480.0,0.00046301,30]
[387854963,1758930677770,-480.0,0.00046301,30]
[387854964,1758930677780,-529.3,0.00046301,30]
[387854965,1758930677789,-480.0,0.00046301,30]
[387854966,1758930677798,-213.97454,0.00046301,120]
[387854967,1758930677808,-512.77,0.00046301,30]
[387854968,1758930677817,-213.97454,0.00046301,120]
[387854969,1758930677827,-711.52,0.00046301,30]
[387854970,1758930677836,-762.04,0.00046301,30]
[387854971,1758930677846,-151.0,0.00046301,120]
[387854972,1758930677855,-1000.0,0.00046301,30]
[387854973,1758930677864,-1024.21,0.00046301,30]
[387854974,1758930677874,-480.0,0.00046301,30]
[387854975,1758930677883,-480.0,0.00046301,30]
[387854976,1758930677894,-480.0,0.00046301,30]
[387854977,1758930677904,-480.0,0.00046301,30]
[387854978,1758930677913,-480.0,0.00046301,30]
[387854979,1758930677923,-742.5,0.00046301,30]
[387854980,1758930677932,-24445.84,0.00046301,30]
[387854981,1758930677941,-1023.2,0.00046301,30]
[387854982,1758930677950,-163.145031,0.00046301,120]
[387854983,1758930677959,-480.0,0.00046301,30]
[387854984,1758930677969,-480.0,0.00046301,30]
[387854985,1758930677978,-882.42,0.00046301,30]
[387854986,1758930677987,-480.0,0.00046301,30]
[387854987,1758930677997,-196.518717,0.00046301,120]
[387854988,1758930678006,-480.0,0.00046301,7]
[387854989,1758930678015,-480.0,0.00046301,30]
[387854990,1758930678025,-480.0,0.00046301,30]
[387854991,1758930678035,-196.518717,0.00046301,120]
[387854992,1758930678044,-480.0,0.00046301,30]
[387854993,1758930678054,-2297.6,0.00046301,30]
[387854994,1758930678065,-196.518717,0.00046301,120]
[387854995,1758930678074,-2345.73,0.00046301,30]
[387854996,1758930678084,-196.518717,0.00046301,120]
[387854997,1758930678092,-3576.08,0.00046301,30]
[387854998,1758930678102,-151.0,0.00046301,120]
[387854999,1758930678111,-6250.23,0.00046301,30]
[387855000,1758930678121,-480.0,0.00046301,30]
[387855001,1758930678130,-177.138893,0.00046301,120]
[387855002,1758930678139,-5284.46,0.00046301,30]
[387855003,1758930678148,-480.0,0.00046301,30]
[387855004,1758930678158,-480.0,0.00046301,30]
[387855005,1758930678167,-151.0,0.00046301,120]
[387855006,1758930678176,-1794.86,0.00046301,30]
[387855007,1758930678186,-601.27,0.00046301,30]
[387855008,1758930678195,-480.0,0.00046301,30]
[387855009,1758930678204,-559.56873803,0.00046301,30]
[387855010,1758930678213,-480.0,0.00046301,30]
[387855011,1758930678223,-6790.44,0.00046301,30]
[387855012,1758930678233,-480.0,0.00046301,30]
[387855013,1758930678242,-480.0,0.00046301,30]
[387855014,1758930678252,-480.0,0.00046301,30]
[387855015,1758930678262,-286.15268475,0.00046301,30]
[387855016,1758930678271,-480.0,0.00046301,30]
[387855017,1758930678280,-480.0,0.00046301,30]
[387855018,1758930678289,-12700.72,0.00046301,30]
[387855019,1758930678299,-4513.91,0.00046301,30]
[387855020,1758930678308,-3127.71,0.00046301,30]
[387855021,1758930678318,-480.0,0.00046301,30]
[387855022,1758930678328,-480.0,0.00046301,30]
[387855023,1758930678337,-616.19,0.00046301,30]
[387855024,1758930678347,-1238.7,0.00046301,30]
[387855025,1758930678356,-480.0,0.00046301,30]
[387855026,1758930678366,-485.26,0.00046301,30]
[387855027,1758930678376,-4636.29,0.00046301,30]
[387855028,1758930678385,-288.960937,0.00046301,120]
[387855029,1758930678397,-480.0,0.00046301,30]
[387855030,1758930678407,-480.0,0.00046301,30]
[387855031,1758930678416,-1841.32,0.00046301,30]
[387855032,1758930678426,-1724.29,0.00046301,30]
[387855033,1758930678435,-480.0,0.00046301,30]
[387855034,1758930678445,-288.960937,0.00046301,120]
[387855035,1758930678454,-480.0,0.00046301,30]
[387855036,1758930678464,-288.960937,0.00046301,120]
[387855037,1758930678473,-480.0,0.00046301,30]
[387855038,1758930678483,-1256.07,0.00046301,30]
[387855039,1758930678492,-480.0,0.00046301,30]
[387855040,1758930678501,-288.960937,0.00046301,120]
[387855041,1758930678511,-1111.04,0.00046301,30]
[387855042,1758930678520,-151.0,0.00046301,120]
[387855043,1758930678530,-2425.11,0.00046301,30]
[387855044,1758930678539,-151.0,0.00046301,120]
[387855045,1758930678549,-6606.03,0.00046301,30]
[387855046,1758930678559,-600.82727236,0.00046301,30]
[387855047,1758930678569,-480.0,0.00046301,30]
[387855048,1758930678578,-480.0,0.00046301,30]
[387855049,1758930678592,-716.75,0.00046301,30]
[387855050,1758930678603,-151.0,0.00046301,120]
[387855051,1758930678613,-480.0,0.00046301,30]
[387855052,1758930678623,-480.0,0.00046301,30]
[387855053,1758930678632,-480.0,0.00046301,30]
[387855054,1758930678643,-480.0,0.00046301,30]
[387855055,1758930678653,-480.0,0.00046301,30]
[387855056,1758930678663,-581.5,0.00046301,30]
[387855057,1758930678672,-480.0,0.00046301,30]
[387855058,1758930678682,-480.0,0.00046301,30]
[387855059,1758930678692,-1442.05,0.00046301,30]
[387855060,1758930678701,-547.46,0.00046301,30]
[387855061,1758930678711,-571.19,0.00046301,30]
[387855062,1758930678720,-795.57,0.00046301,30]
[387855063,1758930678730,-480.0,0.00046301,30]
[387855064,1758930678739,-151.0,0.00046301,120]
[387855065,1758930678749,-151.0,0.00046301,120]
[387855066,1758930678759,-151.0,0.00046301,120]
[387855067,1758930678768,-705.84,0.00046301,30]
[387855068,1758930678778,-480.0,0.00046301,30]
[387855069,1758930678787,-151.0,0.00046301,120]
[387855070,1758930678931,-151.0,0.00046301,120]
[387855071,1758930678941,-480.0,0.00046301,30]
[387855072,1758930678950,-480.0,0.00046301,30]
[387855073,1758930678960,-480.0,0.00046301,30]
[387855074,1758930678969,-259.235208,0.00046301,120]
[387855075,1758930678979,-797.55,0.00046301,30]
[387855076,1758930678988,-480.0,0.00046301,30]
[387855077,1758930678997,-2495.47,0.00046301,30]
[387855078,1758930679007,-480.0,0.00046301,30]
[387855079,1758930679017,-2326.534053,0.00046301,120]
[387855080,1758930679026,-1440.69,0.00046301,30]
[387855081,1758930679035,-480.0,0.00046301,30]
[387855082,1758930679045,-151.0,0.00046301,120]
[387855083,1758930679054,-1344.92,0.00046301,30]
[387855084,1758930679064,-2326.534053,0.00046301,120]
[387855085,1758930679074,-671.91,0.00046301,30]
[387855086,1758930679084,-2326.534053,0.00046301,120]
[387855087,1758930679093,-2326.534053,0.00046301,120]
[387855088,1758930679103,-743.3,0.00046301,30]
[387855089,1758930679113,-1952.62,0.00046301,30]
[387855090,1758930679123,-480.0,0.00046301,30]
[387855091,1758930679132,-480.0,0.00046301,30]
[387855092,1758930679142,-480.0,0.00046301,30]
[387855093,1758930679151,-480.0,0.00046301,30]
[387855094,1758930679161,-578.91,0.00046301,30]
[387855095,1758930679170,-480.0,0.00046301,30]
[387855096,1758930679179,-480.0,0.00046301,30]
[387855097,1758930679189,-1312.29,0.00046301,30]
[387855098,1758930679198,-480.0,0.00046301,30]
[387855099,1758930679208,-2323.54,0.00046301,30]
[387855100,1758930679218,-480.0,0.00046301,30]
[387855101,1758930679228,-480.0,0.00046301,30]
[387855102,1758930679237,-1456.57,0.00046301,30]
[387855103,1758930679247,-2753.73,0.00046301,30]
[387855104,1758930679257,-570.71,0.00046301,30]
[387855105,1758930679267,-480.0,0.00046301,30]
[387855106,1758930679277,-4506.41,0.00046301,30]
[387855107,1758930679286,-151.0,0.00046301,120]
[387855108,1758930679296,-480.0,0.00046301,30]
[387855109,1758930679306,-480.0,0.00046301,30]
[387855110,1758930679315,-151.0,0.00046301,120]
[387855111,1758930679325,-2881.1,0.00046301,21]
[387855112,1758930679335,-151.0,0.00046301,120]
[387855113,1758930679344,-2820.16,0.00046301,30]
[387855114,1758930679354,-480.0,0.00046301,30]
[387855115,1758930679363,-480.0,0.00046301,30]
[387855116,1758930679373,-536.62,0.00046301,30]
[387855117,1758930679382,-1867.94,0.00046301,30]
[387855118,1758930679391,-980.13,0.00046301,30]
[387855119,1758930679400,-888.34,0.00046301,30]
[387855120,1758930679410,-9374.26,0.00046301,30]
[387855121,1758930679420,-480.0,0.00046301,30]
[387855122,1758930679429,-480.0,0.00046301,30]
[387855123,1758930679439,-440.18230091,0.00046301,30]
[387855124,1758930679448,-480.0,0.00046301,30]
[387855125,1758930679457,-480.0,0.00046301,30]
[387855126,1758930679467,-728.57,0.00046301,30]
[387855127,1758930679476,-480.0,0.00046301,30]
[387855128,1758930679485,-480.0,0.00046301,30]
[387855129,1758930679494,-1941.26,0.00046301,30]
[387855130,1758930679503,-578.7,0.00046301,30]
[387855131,1758930679512,-480.0,0.00046301,30]
[387855132,1758930679522,-2171.98,0.00046301,30]
[387855133,1758930679531,-480.0,0.00046301,30]
[387855134,1758930679540,-480.0,0.00046301,30]
[387855135,1758930679549,-5982.08,0.00046301,30]
[387855136,1758930679559,-151.0,0.00046301,120]
[387855137,1758930679568,-480.0,0.00046301,30]
[387855138,1758930679578,-151.0,0.00046301,120]
[387855139,1758930679587,-480.0,0.00046301,7]
[387855140,1758930679596,-481.42852983,0.00046301,30]
[387855141,1758930679605,-151.0,0.00046301,120]
[387855142,1758930679615,-480.0,0.00046301,30]
[387855143,1758930679624,-480.0,0.00046301,30]
[387855144,1758930679633,-1307.11121,0.00046301,120]
[387855145,1758930679643,-1178.96,0.00046301,30]
[387855146,1758930679653,-480.0,0.00046301,30]
[387855147,1758930679662,-151.0,0.00046301,120]
[387855148,1758930679671,-1307.11121,0.00046301,120]
[387855149,1758930679680,-603.24,0.00046301,30]
[387855150,1758930679689,-480.0,0.00046301,30]
[387855151,1758930679699,-151.0,0.00046301,120]
[387855152,1758930679708,-1307.11121,0.00046301,120]
[387855153,1758930679717,-12312.42,0.00046301,30]
[387855154,1758930679727,-480.0,0.00046301,30]
[387855155,1758930679736,-3348.44,0.00046301,30]
[387855156,1758930679745,-240.925123,0.00046301,120]
[387855157,1758930679754,-1307.11121,0.00046301,120]
[387855158,1758930679763,-480.0,0.00046301,30]
[387855159,1758930679772,-487.982454,0.00046301,120]
[387855160,1758930679781,-151.0,0.00046301,120]
[387855161,1758930679790,-480.0,0.00046301,30]
[387855162,1758930679799,-480.0,0.00046301,30]
[387855163,1758930679808,-480.0,0.00046301,30]
[387855164,1758930679818,-480.0,0.00046301,30]
[387855165,1758930679827,-151.0,0.00046301,120]
[387855166,1758930679836,-487.982454,0.00046301,120]
[387855167,1758930679845,-151.750105,0.00046301,120]
[387855168,1758930679854,-480.0,0.00046301,30]
[387855169,1758930679863,-480.0,0.00046301,30]
[387855170,1758930679873,-151.0,0.00046301,120]
[387855171,1758930679882,-151.750105,0.00046301,120]
[387855172,1758930679891,-487.982454,0.00046301,120]
[387855173,1758930679900,-761.77,0.00046301,30]
[387855174,1758930679909,-480.0,0.00046301,30]
[387855175,1758930679918,-480.0,0.00046301,30]
[387855176,1758930679927,-2476.81,0.00046301,30]
[387855177,1758930679937,-151.750105,0.00046301,120]
[387855178,1758930679946,-487.982454,0.00046301,120]
[387855179,1758930679955,-480.0,0.00046301,30]
[387855180,1758930679964,-151.0,0.00046301,120]
[387855181,1758930679973,-200.65539401,0.00046301,30]
[387855182,1758930679983,-151.750105,0.00046301,120]
[387855183,1758930679992,-847.29,0.00046301,30]
[387855184,1758930680001,-3391.21,0.00046301,30]
[387855185,1758930680010,-1309.23,0.00046301,30]
[387855186,1758930680020,-480.0,0.00046301,30]
[387855187,1758930680029,-151.0,0.00046301,120]
[387855188,1758930680038,-480.0,0.00046301,30]
[387855189,1758930680048,-480.0,0.00046301,30]
[387855190,1758930680057,-645.27,0.00046301,30]
[387855191,1758930680067,-480.0,0.00046301,30]
[387855192,1758930680076,-480.0,0.00046301,30]
[387855193,1758930680085,-480.0,0.00046301,30]
[387855194,1758930680094,-480.0,0.00046301,30]
[387855195,1758930680103,-948.72,0.00046301,30]
[387855196,1758930680113,-480.0,0.00046301,30]
[387855197,1758930680123,-480.0,0.00046301,30]
[387855198,1758930680132,-480.0,0.00046301,30]
[387855199,1758930680141,-480.0,0.00046301,30]
[387855200,1758930680150,-480.0,0.00046301,30]
[387855201,1758930680159,-480.0,0.00046301,30]
[387855202,1758930680169,-480.0,0.00046301,30]
[387855203,1758930680178,-480.42878358,0.00046301,30]
[387855204,1758930680187,-633.74,0.00046301,30]
[387855205,1758930680196,-480.0,0.00046301,30]
[387855206,1758930680205,-3378.19,0.00046301,30]
[387855207,1758930680215,-2958.62,0.00046301,30]
[387855208,1758930680225,-13211.37,0.00046301,30]
[387855209,1758930680234,-480.0,0.00046301,30]
[387855210,1758930680243,-480.0,0.00046301,30]
[387855211,1758930680253,-4724.16,0.00046301,30]
[387855212,1758930680262,-480.0,0.00046301,30]
[387855213,1758930680271,-480.0,0.00046301,30]
[387855214,1758930680281,-480.0,0.00046301,20]
[387855215,1758930680291,-1029.55,0.00046301,30]
[387855216,1758930680300,-480.0,0.00046301,30]
[387855217,1758930680309,-480.0,0.00046301,30]
[387855218,1758930680319,-805.78,0.00046301,30]
[387855219,1758930680329,-912.9,0.00046301,30]
[387855220,1758930680338,-480.0,0.00046301,30]
[387855221,1758930680347,-169.341716,0.00046301,120]
[387855222,1758930680356,-480.0,0.00046301,30]
[387855223,1758930680365,-480.0,0.00046301,30]
[387855224,1758930680375,-639.03,0.00046301,30]
[387855225,1758930680384,-607.64,0.00046301,30]
[387855226,1758930680394,-480.0,0.00046301,30]
[387855227,1758930680404,-169.341716,0.00046301,120]
[387855228,1758930680414,-480.0,0.00046301,30]
[387855229,1758930680423,-480.0,0.00046301,30]
[387855230,1758930680432,-540.39,0.00046301,30]
[387855231,1758930680442,-594.396662,0.00046301,120]
[387855232,1758930680452,-1971.41,0.00046301,30]
[387855233,1758930680462,-480.0,0.00046301,30]
[387855234,1758930680471,-594.396662,0.00046301,120]
[387855235,1758930680480,-483.55289914,0.00046301,30]
[387855236,1758930680489,-169.341716,0.00046301,120]
[387855237,1758930680498,-480.0,0.00046301,30]
[387855238,1758930680508,-594.396662,0.00046301,120]
[387855239,1758930680517,-480.0,0.00046301,30]
[387855240,1758930680526,-2584.13,0.00046301,30]
[387855241,1758930680535,-169.341716,0.00046301,120]
[387855242,1758930680545,-480.0,0.00046301,30]
[387855243,1758930680653,-594.396662,0.00046301,120]
[387855244,1758930680676,-1397.29,0.00046301,30]
[387855245,1758930680685,-480.0,0.00046301,30]
[387855246,1758930680695,-480.0,0.00046301,30]
[387855247,1758930680704,-480.0,0.00046301,30]
[387855248,1758930680715,-1076.06,0.00046301,30]
[387855249,1758930680724,-480.0,0.00046301,30]
[387855250,1758930680733,-480.0,0.00046301,30]
[387855251,1758930680743,-3296.42,0.00046301,30]
[387855252,1758930680752,-480.0,0.00046301,30]
[387855253,1758930680762,-4054.29106,0.00046301,120]
[387855254,1758930680771,-480.0,0.00046301,30]
[387855255,1758930680781,-480.0,0.00046301,30]
[387855256,1758930680790,-480.0,0.00046301,30]
[387855257,1758930680799,-166.123884,0.00046301,120]
[387855258,1758930680808,-4054.29106,0.00046301,120]
[387855259,1758930680818,-480.0,0.00046301,30]
[387855260,1758930680829,-480.0,0.00046301,30]
[387855261,1758930680841,-480.0,0.00046301,30]
[387855262,1758930680850,-166.123884,0.00046301,120]
[387855263,1758930680860,-4054.29106,0.00046301,120]
[387855264,1758930680869,-480.0,0.00046301,30]
[387855265,1758930680878,-480.0,0.00046301,30]
[387855266,1758930680887,-166.123884,0.00046301,120]
[387855267,1758930680897,-4054.29106,0.00046301,120]
[387855268,1758930680906,-166.123884,0.00046301,120]
[387855269,1758930680915,-480.0,0.00046301,30]
[387855270,1758930680924,-500.0,0.00046415,30]
[387855271,1758930680935,-454594.03978473,0.0004644,30]
[387855272,1758930680944,-915.64427753,0.0004644,2]